{"text_format":"1","workbook":"xlsx","n_sheets":9,"sheets":["Açıklama","an","e","t","i","l","o","k","Sonraki sesler eklenecektir"],"not_rendered":{"charts":0,"images":8,"macros":1,"external_links":0,"defined_names":0,"comments":0,"pivot_tables":0},"unopened":[],"bounds":{"document_bytes":16777216,"sheet_cells":100000,"rows_first":2000,"rows_last":500,"rows_between":2000,"halvings":0,"cell_chars":16384,"cell_head_chars":4096},"cells_cut":0,"cells_raw":0,"read":"whole","date_system":"1900"}

{"sheet":"Açıklama","index":0,"n_rows":27,"n_cols":14,"rows_kept":27,"cut":false,"hidden":false,"merged":[[26,11,26,12],[26,0,26,10],[0,0,1,13],[6,0,6,13],[13,0,13,9],[14,0,14,9],[15,0,15,9],[16,0,16,9],[23,0,23,9],[24,0,24,7],[24,8,24,9],[25,0,25,9]]}
["Hatalar ve Çözümleri"]
[]
[]
[]
[]
[]
["KORUMALI GÖRÜNÜM hatasını alırsanız tam kullanım için \"Düzenlemeyi Etkinleştir\" butonuna basınız. (Robot korumalı görünümde de çalışır.)"]
[]
[]
[]
[]
[]
[]
["GÜVENLİK RİSKİ hatasını alırsanız EXCEL'i kapatınız."]
["İndirdiğiniz dosyaya sağ tıklayıp \"Özellikler\"i seçiniz."]
["Ardından \"Engellemeyi Kaldır\" seçeneğini işaretleyerek TAMAM'a basınız."]
["Programı tekrar çalıştırdığınızda Robotunuzu kullanabileceksiniz."]
[]
[]
[]
[]
[]
[]
["GÜVENLİK UYARISI hatasını alırsanız \"İçeriği Etkinleştir\" butonuna basınız."]
["Türkçeye uygun fonta geçmek için yandaki dosyayı indirip C:\\Windows\\Fonts içine kaydedin."]
["Hecelerin ve kelimelerin olduğu sayfalar ekranınıza sığmazsa sağ alttaki -'ye basarak sayfayı yeniden boyutlandırınız."]
["Başlamak için aşağıdaki sekmelerden bir ses seçiniz:",null,null,null,null,null,null,null,null,null,null,"Robot Sürümü:",null,31]

{"sheet":"an","index":1,"n_rows":14,"n_cols":7,"rows_kept":14,"cut":false,"hidden":false,"merged":[[4,0,4,1],[4,3,4,4],[0,0,0,7],[3,6,3,7],[1,0,1,1],[1,3,1,4],[2,0,2,1],[2,3,2,4],[3,0,3,1],[3,3,3,4],[1,6,1,7],[2,6,2,7],[4,5,4,7],[5,3,5,7],[10,0,10,2],[10,3,10,4],[10,5,10,7],[6,0,6,1],[6,3,6,4],[8,0,8,1],[8,3,8,4],[8,6,8,7],[6,5,6,7]]}
["Tekrar Kısmı"]
["Küçük Harf",null,null,"Sesli Başta",null,null,"Sessiz Başta"]
[{"$f":"A13","v":"a"},null,null,{"$f":"A3 & A5","v":"an"},null,null,{"$f":"TersYaz(D3)","v":"na"}]
["Büyük Harf"]
[{"$f":"A14","v":"n"}]
[]
[{"$f":"UPPER(A3)","v":"A"}]
[]
[{"$f":"UPPER(A5)","v":"N"}]
[]
["a",null,null,"n",null,"a"]
[]
["a"]
["n"]

{"sheet":"e","index":2,"n_rows":19,"n_cols":20,"rows_kept":19,"cut":false,"hidden":false,"merged":[[0,0,0,7],[0,9,0,19],[6,9,6,14],[7,9,7,14],[8,9,8,14],[2,9,2,14],[3,9,3,14],[4,9,4,14],[5,9,5,14],[1,9,1,14],[11,0,11,20],[6,0,6,1],[8,0,8,1],[1,0,1,1],[1,16,1,19],[2,0,2,1],[4,0,4,1],[2,3,2,4],[2,6,2,7],[4,3,4,4],[4,6,4,7],[1,3,1,4],[1,6,1,7],[10,9,10,12],[10,13,10,14]]}
["Tekrar Kısmı",null,null,null,null,null,null,null,null,"Kelimeler"]
["Sesler",null,null,"Sesli Başta",null,null,"Sessiz Başta",null,null,"Tek Hece",null,null,null,null,null,null,"Hecelere Ayrılmış Hali"]
[{"$f":"INDEX(A13:B13,RANDBETWEEN(1,2))","v":"e"},null,null,{"$f":"A3 & A14","v":"en"},null,null,{"$f":"TersYaz(D3)","v":"ne"},null,null,{"$f":"INDEX(J15:J19,RANDBETWEEN(1,5))","v":"ne"},null,null,null,null,null,null,{"$f":"HeceleHoriz(J3)","v":"ne"}]
[null,null,null,null,null,null,null,null,null,"İki Hece"]
[{"$f":"INDEX(A14:A14,RANDBETWEEN(1,1))","v":"n"},null,null,null,null,null,null,null,null,{"$f":"INDEX(K15:K18,RANDBETWEEN(1,4))","v":"nene"},null,null,null,null,null,null,{"$f":"HeceleHoriz(J5)","v":"ne"},"ne"]
[null,null,null,null,null,null,null,null,null,"Üç Hece"]
[{"$f":"UPPER(A3)","v":"E"},null,null,null,null,null,null,null,null,{"$f":"INDEX(L15:L15,RANDBETWEEN(1,1))","v":"anane"},null,null,null,null,null,null,{"$f":"HeceleHoriz(J7)","v":"a"},"na","ne"]
[null,null,null,null,null,null,null,null,null,"Dört Hece"]
[{"$f":"UPPER(A5)","v":"N"},null,null,null,null,null,null,null,null,{"$f":"INDEX(M15:M15,RANDBETWEEN(1,1))","v":"anneanne"},null,null,null,null,null,null,{"$f":"HeceleHoriz(J9)","v":"an"},"ne","an","ne"]
[]
[null,null,null,null,null,null,null,null,null,"Türkçeye uygun fonta geçmek için (harflerin yazılışlardaki farklılıklarını gidermek için) yandaki dosyayı indirip C:\\Windows\\Fonts içine kaydedin."]
["Kelimeler EXCEL'de siz F9'a bastıkça değişecektir. (İlk gruplarda  fazla kelime olmadığı için aynı kelimeler tekrar gelebilir.)"]
["a","e"]
["n"]
[null,null,null,null,null,null,null,null,null,"an","ana","anane","anneanne"]
[null,null,null,null,null,null,null,null,null,"na","anne"]
[null,null,null,null,null,null,null,null,null,"en","nane"]
[null,null,null,null,null,null,null,null,null,"ne","nene"]
[null,null,null,null,null,null,null,null,null,"nan"]

{"sheet":"t","index":3,"n_rows":26,"n_cols":18,"rows_kept":26,"cut":false,"hidden":false,"merged":[[0,14,0,17],[0,0,0,7],[0,9,0,12],[10,9,10,11],[1,3,1,4],[1,6,1,7],[1,10,1,12],[11,0,11,18],[10,0,10,1],[9,10,9,12],[9,15,9,17],[4,3,4,4],[4,6,4,7],[5,10,5,12],[5,15,5,17],[6,0,6,1],[6,3,6,4],[6,6,6,7],[7,10,7,12],[1,0,1,1],[8,0,8,1],[8,6,8,7],[7,15,7,17],[8,3,8,4],[3,3,3,4],[4,0,4,1],[3,0,3,1],[3,6,3,7],[3,15,3,17],[3,10,3,12],[2,0,2,1],[2,3,2,4],[2,6,2,7],[1,15,1,17]]}
["Tekrar Kısmı",null,null,null,null,null,null,null,null,"Yeni Ses İle Kelimeler",null,null,null,null,"Öğrenilmiş Tüm Seslerle Kelimeler"]
["Yeni Ses",null,null,"Sesli Başta",null,null,"Sessiz Başta",null,null,"Tek Hece:",{"$f":"INDEX(J20:J26,RANDBETWEEN(1,7))","v":"at"},null,null,null,"Tek Hece:",{"$f":"INDEX(J15:J26,RANDBETWEEN(1,12))","v":"ten"}]
[{"$f":"B14","v":"t"},null,null,{"$f":"TersYaz(G3)","v":"et"},null,null,{"$f":"A3 & INDEX(A13:B13,RANDBETWEEN(1,2))","v":"te"},null,null,{"$f":"HeceleHoriz(K2)","v":"at"},null,null,null,null,{"$f":"HeceleHoriz(P2)","v":"ten"}]
["Tüm Sesler",null,null,"Sesli Başta",null,null,"Sessiz Başta",null,null,"İki Hece:",{"$f":"INDEX(K19:K22,RANDBETWEEN(1,4))","v":"ata"},null,null,null,"İki Hece:",{"$f":"INDEX(K15:K22,RANDBETWEEN(1,8))","v":"anten"}]
[{"$f":"INDEX(A13:B13,RANDBETWEEN(1,2))","v":"a"},null,null,{"$f":"TersYaz(G5)","v":"at"},null,null,{"$f":"A7 & A13","v":"ta"},null,null,{"$f":"HeceleHoriz(K4)","v":"a"},"ta",null,null,null,{"$f":"HeceleHoriz(P4)","v":"an"},"ten"]
[null,null,null,null,null,null,null,null,null,"Üç Hece:",{"$f":"INDEX(L16:L16,RANDBETWEEN(1,1))","v":"tantana"},null,null,null,"Üç Hece:",{"$f":"INDEX(L15:L16,RANDBETWEEN(1,2))","v":"anane"}]
[{"$f":"INDEX(A14:B14,RANDBETWEEN(1,2))","v":"t"},null,null,{"$f":"TersYaz(G7)","v":"et"},null,null,{"$f":"A7 & B13","v":"te"},null,null,{"$f":"HeceleHoriz(K6)","v":"tan"},"ta","na",null,null,{"$f":"HeceleHoriz(P6)","v":"a"},"na","ne"]
[null,null,null,null,null,null,null,null,null,"Dört Hece:","Kelime Yok",null,null,null,"Dört Hece:",{"$f":"INDEX(M15:M15,RANDBETWEEN(1,1))","v":"anneanne"}]
[{"$f":"UPPER(A5)","v":"A"},null,null,null,null,null,null,null,null,null,null,null,null,null,{"$f":"HeceleHoriz(P8)","v":"an"},"ne","an","ne"]
[]
[{"$f":"UPPER(A7)","v":"T"},null,null,null,null,null,null,null,null,"Türkçeye uygun fonta geçmek için (harflerin yazılışlardaki farklılıklarını gidermek için) yandaki dosyayı indirip C:\\Windows\\Fonts içine kaydedin."]
["Kelimeler F9'a bastıkça değişecektir. (İlk gruplarda  fazla kelime olmadığı için aynı kelimeler tekrar gelebilir.)"]
["a","e"]
["n","t"]
[null,null,null,null,null,null,null,null,null,"an","ana","anane","anneanne"]
[null,null,null,null,null,null,null,null,null,"na","anne","tantana"]
[null,null,null,null,null,null,null,null,null,"en","nane"]
[null,null,null,null,null,null,null,null,null,"ne","nene"]
[null,null,null,null,null,null,null,null,null,"nan","anten"]
[null,null,null,null,null,null,null,null,null,"at","ata"]
[null,null,null,null,null,null,null,null,null,"et","tane"]
[null,null,null,null,null,null,null,null,null,"ant","tente"]
[null,null,null,null,null,null,null,null,null,"net"]
[null,null,null,null,null,null,null,null,null,"tan"]
[null,null,null,null,null,null,null,null,null,"tat"]
[null,null,null,null,null,null,null,null,null,"ten"]

{"sheet":"i","index":4,"n_rows":31,"n_cols":18,"rows_kept":31,"cut":false,"hidden":false,"merged":[[6,0,6,1],[6,3,6,4],[6,6,6,7],[2,0,2,1],[2,3,2,4],[2,6,2,7],[4,0,4,1],[4,3,4,4],[4,6,4,7],[3,0,3,1],[3,3,3,4],[3,6,3,7],[5,15,5,17],[3,10,3,12],[5,10,5,12],[7,10,7,12],[7,15,7,17],[0,14,0,17],[1,15,1,17],[3,15,3,17],[0,0,0,7],[0,9,0,12],[1,0,1,1],[1,3,1,4],[1,6,1,7],[1,10,1,12],[11,0,11,18],[8,0,8,1],[8,3,8,4],[8,6,8,7],[9,10,9,12],[9,15,9,17],[10,0,10,1],[10,9,10,11]]}
["Tekrar Kısmı",null,null,null,null,null,null,null,null,"Yeni Ses İle Kelimeler",null,null,null,null,"Öğrenilmiş Tüm Seslerle Kelimeler"]
["Yeni Ses",null,null,"Sesli Başta",null,null,"Sessiz Başta",null,null,"Tek Hece:",{"$f":"INDEX(J27:J31,RANDBETWEEN(1,5))","v":"it"},null,null,null,"Tek Hece:",{"$f":"INDEX(J15:J31,RANDBETWEEN(1,17))","v":"nan"}]
[{"$f":"C13","v":"i"},null,null,{"$f":"A3 & INDEX(A14:B14,RANDBETWEEN(1,2))","v":"in"},null,null,{"$f":"TersYaz(D3)","v":"ni"},null,null,{"$f":"HeceleHoriz(K2)","v":"it"},null,null,null,null,{"$f":"HeceleHoriz(P2)","v":"nan"}]
["Tüm Sesler",null,null,"Sesli Başta",null,null,"Sessiz Başta",null,null,"İki Hece:",{"$f":"INDEX(K23:K29,RANDBETWEEN(1,7))","v":"ninni"},null,null,null,"İki Hece:",{"$f":"INDEX(K15:K29,RANDBETWEEN(1,15))","v":"nene"}]
[{"$f":"INDEX(A13:C13,RANDBETWEEN(1,3))","v":"i"},null,null,{"$f":"A5 & A14","v":"in"},null,null,{"$f":"TersYaz(D5)","v":"ni"},null,null,{"$f":"HeceleHoriz(K4)","v":"nin"},"ni",null,null,null,{"$f":"HeceleHoriz(P4)","v":"ne"},"ne"]
[null,null,null,null,null,null,null,null,null,"Üç Hece:",{"$f":"INDEX(L17:L18,RANDBETWEEN(1,2))","v":"itina"},null,null,null,"Üç Hece:",{"$f":"INDEX(L15:L18,RANDBETWEEN(1,4))","v":"itina"}]
[{"$f":"INDEX(A14:B14,RANDBETWEEN(1,2))","v":"n"},null,null,{"$f":"A5 & B14","v":"it"},null,null,{"$f":"TersYaz(D7)","v":"ti"},null,null,{"$f":"HeceleHoriz(K6)","v":"i"},"ti","na",null,null,{"$f":"HeceleHoriz(P6)","v":"i"},"ti","na"]
[null,null,null,null,null,null,null,null,null,"Dört Hece:","Kelime Yok",null,null,null,"Dört Hece:",{"$f":"INDEX(M15:M15,RANDBETWEEN(1,1))","v":"anneanne"}]
[{"$f":"UPPER(A5)","v":"İ"},null,null,null,null,null,null,null,null,null,null,null,null,null,{"$f":"HeceleHoriz(P8)","v":"an"},"ne","an","ne"]
[]
[{"$f":"UPPER(A7)","v":"N"},null,null,null,null,null,null,null,null,"Türkçeye uygun fonta geçmek için (harflerin yazılışlardaki farklılıklarını gidermek için) yandaki dosyayı indirip C:\\Windows\\Fonts içine kaydedin."]
["Kelimeler F9'a bastıkça değişecektir. (İlk gruplarda  fazla kelime olmadığı için aynı kelimeler tekrar gelebilir.)"]
["a","e","i"]
["n","t"]
[null,null,null,null,null,null,null,null,null,"an","ana","anane","anneanne"]
[null,null,null,null,null,null,null,null,null,"na","anne","tantana"]
[null,null,null,null,null,null,null,null,null,"en","nane","itaat"]
[null,null,null,null,null,null,null,null,null,"ne","nene","itina"]
[null,null,null,null,null,null,null,null,null,"nan","anten"]
[null,null,null,null,null,null,null,null,null,"at","ata"]
[null,null,null,null,null,null,null,null,null,"et","tane"]
[null,null,null,null,null,null,null,null,null,"ant","tente"]
[null,null,null,null,null,null,null,null,null,"net","ani"]
[null,null,null,null,null,null,null,null,null,"tan","anti"]
[null,null,null,null,null,null,null,null,null,"tat","eti"]
[null,null,null,null,null,null,null,null,null,"ten","inan"]
[null,null,null,null,null,null,null,null,null,"in","inat"]
[null,null,null,null,null,null,null,null,null,"it","nine"]
[null,null,null,null,null,null,null,null,null,"ti","ninni"]
[null,null,null,null,null,null,null,null,null,"ni"]
[null,null,null,null,null,null,null,null,null,"tin"]

{"sheet":"l","index":5,"n_rows":54,"n_cols":18,"rows_kept":54,"cut":false,"hidden":false,"merged":[[0,0,0,7],[0,9,0,12],[0,14,0,17],[1,0,1,1],[1,3,1,4],[1,6,1,7],[1,10,1,12],[1,15,1,17],[5,10,5,12],[5,15,5,17],[2,0,2,1],[2,3,2,4],[2,6,2,7],[3,0,3,1],[3,3,3,4],[3,6,3,7],[3,10,3,12],[3,15,3,17],[4,0,4,1],[4,3,4,4],[4,6,4,7],[9,10,9,12],[9,15,9,17],[10,0,10,1],[11,0,11,18],[6,0,6,1],[6,3,6,4],[6,6,6,7],[7,10,7,12],[7,15,7,17],[8,0,8,1],[8,3,8,4],[8,6,8,7],[10,9,10,11]]}
["Tekrar Kısmı",null,null,null,null,null,null,null,null,"Yeni Ses İle Kelimeler",null,null,null,null,"Öğrenilmiş Tüm Seslerle Kelimeler"]
["Yeni Ses",null,null,"Sesli Başta",null,null,"Sessiz Başta",null,null,"Tek Hece:",{"$f":"INDEX(J32:J1000,RANDBETWEEN(1,11))","v":"tel"},null,null,null,"Tek Hece:",{"$f":"INDEX(J15:J1000,RANDBETWEEN(1,28))","v":"at"}]
[{"$f":"C14","v":"l"},null,null,{"$f":"TersYaz(G3)","v":"il"},null,null,{"$f":"A3 & INDEX(A13:C13,RANDBETWEEN(1,3))","v":"li"},null,null,{"$f":"HeceleHoriz(K2)","v":"tel"},null,null,null,null,{"$f":"HeceleHoriz(P2)","v":"at"}]
["Tüm Sesler",null,null,"Sesli Başta",null,null,"Sessiz Başta",null,null,"İki Hece:",{"$f":"INDEX(K30:K1000,RANDBETWEEN(1,25))","v":"enli"},null,null,null,"İki Hece:",{"$f":"INDEX(K15:K1000,RANDBETWEEN(1,40))","v":"elti"}]
[{"$f":"INDEX(A13:C13,RANDBETWEEN(1,3))","v":"a"},null,null,{"$f":"TersYaz(G5)","v":"an"},null,null,{"$f":"A7 & A13","v":"na"},null,null,{"$f":"HeceleHoriz(K4)","v":"en"},"li",null,null,null,{"$f":"HeceleHoriz(P4)","v":"el"},"ti"]
[null,null,null,null,null,null,null,null,null,"Üç Hece:",{"$f":"INDEX(L19:L1000,RANDBETWEEN(1,15))","v":"aleni"},null,null,null,"Üç Hece:",{"$f":"INDEX(L15:L1000,RANDBETWEEN(1,19))","v":"itina"}]
[{"$f":"INDEX(A14:C14,RANDBETWEEN(1,3))","v":"n"},null,null,{"$f":"TersYaz(G7)","v":"en"},null,null,{"$f":"A7 & B13","v":"ne"},null,null,{"$f":"HeceleHoriz(K6)","v":"a"},"le","ni",null,null,{"$f":"HeceleHoriz(P6)","v":"i"},"ti","na"]
[null,null,null,null,null,null,null,null,null,"Dört Hece:",{"$f":"INDEX(M16:M1000,RANDBETWEEN(1,3))","v":"ilintili"},null,null,null,"Dört Hece:",{"$f":"INDEX(M15:M1000,RANDBETWEEN(1,4))","v":"iletilen"}]
[{"$f":"UPPER(A5)","v":"A"},null,null,{"$f":"TersYaz(G9)","v":"in"},null,null,{"$f":"A7 & C13","v":"ni"},null,null,{"$f":"HeceleHoriz(K8)","v":"i"},"lin","ti","li",null,{"$f":"HeceleHoriz(P8)","v":"i"},"le","ti","len"]
[]
[{"$f":"UPPER(A7)","v":"N"},null,null,null,null,null,null,null,null,"Türkçeye uygun fonta geçmek için (harflerin yazılışlardaki farklılıklarını gidermek için) yandaki dosyayı indirip C:\\Windows\\Fonts içine kaydedin."]
["Kelimeler F9'a bastıkça değişecektir. (İlk gruplarda  fazla kelime olmadığı için aynı kelimeler tekrar gelebilir.)"]
["a","e","i"]
["n","t","l"]
[null,null,null,null,null,null,null,null,null,"an","ana","anane","anneanne"]
[null,null,null,null,null,null,null,null,null,"na","anne","tantana","iletilen"]
[null,null,null,null,null,null,null,null,null,"en","nane","itaat","ilintili"]
[null,null,null,null,null,null,null,null,null,"ne","nene","itina","iniltili"]
[null,null,null,null,null,null,null,null,null,"nan","anten","aile"]
[null,null,null,null,null,null,null,null,null,"at","ata","alenen"]
[null,null,null,null,null,null,null,null,null,"et","tane","aleni"]
[null,null,null,null,null,null,null,null,null,"ant","tente","aletli"]
[null,null,null,null,null,null,null,null,null,"net","ani","anlatan"]
[null,null,null,null,null,null,null,null,null,"tan","anti","antenli"]
[null,null,null,null,null,null,null,null,null,"tat","eti","atilla"]
[null,null,null,null,null,null,null,null,null,"ten","inan","etilen"]
[null,null,null,null,null,null,null,null,null,"in","inat","ilanen"]
[null,null,null,null,null,null,null,null,null,"it","nine","ileti"]
[null,null,null,null,null,null,null,null,null,"ti","ninni","laleli"]
[null,null,null,null,null,null,null,null,null,"ni","alan","lanetli"]
[null,null,null,null,null,null,null,null,null,"tin","alet","naneli"]
[null,null,null,null,null,null,null,null,null,"la","anlat","taneli"]
[null,null,null,null,null,null,null,null,null,"le","atlet","tenteli"]
[null,null,null,null,null,null,null,null,null,"li","Ela"]
[null,null,null,null,null,null,null,null,null,"al","elit"]
[null,null,null,null,null,null,null,null,null,"el","elli"]
[null,null,null,null,null,null,null,null,null,"il","elti"]
[null,null,null,null,null,null,null,null,null,"alt","enli"]
[null,null,null,null,null,null,null,null,null,"lan","entel"]
[null,null,null,null,null,null,null,null,null,"nal","etil"]
[null,null,null,null,null,null,null,null,null,"tal","etli"]
[null,null,null,null,null,null,null,null,null,"tel","ila"]
[null,null,null,null,null,null,null,null,null,null,"ile"]
[null,null,null,null,null,null,null,null,null,null,"ille"]
[null,null,null,null,null,null,null,null,null,null,"illet"]
[null,null,null,null,null,null,null,null,null,null,"lala"]
[null,null,null,null,null,null,null,null,null,null,"Lale"]
[null,null,null,null,null,null,null,null,null,null,"latin"]
[null,null,null,null,null,null,null,null,null,null,"Linet"]
[null,null,null,null,null,null,null,null,null,null,"nitel"]
[null,null,null,null,null,null,null,null,null,null,"talan"]
[null,null,null,null,null,null,null,null,null,null,"tali"]
[null,null,null,null,null,null,null,null,null,null,"tatil"]
[null,null,null,null,null,null,null,null,null,null,"telli"]

{"sheet":"o","index":6,"n_rows":69,"n_cols":18,"rows_kept":69,"cut":false,"hidden":false,"merged":[[0,0,0,7],[0,9,0,12],[0,14,0,17],[1,0,1,1],[1,3,1,4],[1,6,1,7],[1,10,1,12],[1,15,1,17],[5,10,5,12],[5,15,5,17],[2,0,2,1],[2,3,2,4],[2,6,2,7],[3,0,3,1],[3,3,3,4],[3,6,3,7],[3,10,3,12],[3,15,3,17],[4,0,4,1],[4,3,4,4],[4,6,4,7],[9,10,9,12],[9,15,9,17],[10,0,10,1],[11,0,11,18],[6,0,6,1],[6,3,6,4],[6,6,6,7],[7,10,7,12],[7,15,7,17],[8,0,8,1],[8,3,8,4],[8,6,8,7],[10,9,10,11]]}
["Tekrar Kısmı",null,null,null,null,null,null,null,null,"Yeni Ses İle Kelimeler",null,null,null,null,"Öğrenilmiş Tüm Seslerle Kelimeler"]
["Yeni Ses",null,null,"Sesli Başta",null,null,"Sessiz Başta",null,null,"Tek Hece:",{"$f":"INDEX(J43:J1000,RANDBETWEEN(1,10))","v":"not"},null,null,null,"Tek Hece:",{"$f":"INDEX(J15:J1000,RANDBETWEEN(1,38))","v":"no"}]
[{"$f":"D13","v":"o"},null,null,{"$f":"A3 & INDEX(A14:B14,RANDBETWEEN(1,2))","v":"ot"},null,null,{"$f":"TersYaz(D3)","v":"to"},null,null,{"$f":"HeceleHoriz(K2)","v":"not"},null,null,null,null,{"$f":"HeceleHoriz(P2)","v":"no"}]
["Tüm Sesler",null,null,"Sesli Başta",null,null,"Sessiz Başta",null,null,"İki Hece:",{"$f":"INDEX(K55:K1000,RANDBETWEEN(1,15))","v":"ona"},null,null,null,"İki Hece:",{"$f":"INDEX(K15:K1000,RANDBETWEEN(1,55))","v":"nane"}]
[{"$f":"INDEX(A13:D13,RANDBETWEEN(1,4))","v":"i"},null,null,{"$f":"A5 & A14","v":"in"},null,null,{"$f":"TersYaz(D5)","v":"ni"},null,null,{"$f":"HeceleHoriz(K4)","v":"o"},"na",null,null,null,{"$f":"HeceleHoriz(P4)","v":"na"},"ne"]
[null,null,null,null,null,null,null,null,null,"Üç Hece:",{"$f":"INDEX(L34:L1000,RANDBETWEEN(1,2))","v":"otolit"},null,null,null,"Üç Hece:",{"$f":"INDEX(L15:L1000,RANDBETWEEN(1,21))","v":"itaat"}]
[{"$f":"INDEX(A14:C14,RANDBETWEEN(1,3))","v":"n"},null,null,{"$f":"A5 & B14","v":"it"},null,null,{"$f":"TersYaz(D7)","v":"ti"},null,null,{"$f":"HeceleHoriz(K6)","v":"o"},"to","lit",null,null,{"$f":"HeceleHoriz(P6)","v":"i"},"ta","at"]
[null,null,null,null,null,null,null,null,null,"Dört Hece:",{"$f":"INDEX(M19:M1000,RANDBETWEEN(1,1))","v":"tonalite"},null,null,null,"Dört Hece:",{"$f":"INDEX(M15:M1000,RANDBETWEEN(1,5))","v":"iletilen"}]
[{"$f":"UPPER(A5)","v":"İ"},null,null,{"$f":"A5 & C14","v":"il"},null,null,{"$f":"TersYaz(D9)","v":"li"},null,null,{"$f":"HeceleHoriz(K8)","v":"to"},"na","li","te",null,{"$f":"HeceleHoriz(P8)","v":"i"},"le","ti","len"]
[]
[{"$f":"UPPER(A7)","v":"N"},null,null,null,null,null,null,null,null,"Türkçeye uygun fonta geçmek için (harflerin yazılışlardaki farklılıklarını gidermek için) yandaki dosyayı indirip C:\\Windows\\Fonts içine kaydedin."]
["Kelimeler F9'a bastıkça değişecektir. (İlk gruplarda  fazla kelime olmadığı için aynı kelimeler tekrar gelebilir.)"]
["a","e","i","o"]
["n","t","l"]
[null,null,null,null,null,null,null,null,null,"an","ana","anane","anneanne"]
[null,null,null,null,null,null,null,null,null,"na","anne","tantana","iletilen"]
[null,null,null,null,null,null,null,null,null,"en","nane","itaat","ilintili"]
[null,null,null,null,null,null,null,null,null,"ne","nene","itina","iniltili"]
[null,null,null,null,null,null,null,null,null,"nan","anten","aile","tonalite"]
[null,null,null,null,null,null,null,null,null,"at","ata","alenen"]
[null,null,null,null,null,null,null,null,null,"et","tane","aleni"]
[null,null,null,null,null,null,null,null,null,"ant","tente","aletli"]
[null,null,null,null,null,null,null,null,null,"net","ani","anlatan"]
[null,null,null,null,null,null,null,null,null,"tan","anti","antenli"]
[null,null,null,null,null,null,null,null,null,"tat","eti","atilla"]
[null,null,null,null,null,null,null,null,null,"ten","inan","etilen"]
[null,null,null,null,null,null,null,null,null,"in","inat","ilanen"]
[null,null,null,null,null,null,null,null,null,"it","nine","ileti"]
[null,null,null,null,null,null,null,null,null,"ti","ninni","laleli"]
[null,null,null,null,null,null,null,null,null,"ni","alan","lanetli"]
[null,null,null,null,null,null,null,null,null,"tin","alet","naneli"]
[null,null,null,null,null,null,null,null,null,"la","anlat","taneli"]
[null,null,null,null,null,null,null,null,null,"le","atlet","tenteli"]
[null,null,null,null,null,null,null,null,null,"li","Ela","etanol"]
[null,null,null,null,null,null,null,null,null,"al","elit","otolit"]
[null,null,null,null,null,null,null,null,null,"el","elli"]
[null,null,null,null,null,null,null,null,null,"il","elti"]
[null,null,null,null,null,null,null,null,null,"alt","enli"]
[null,null,null,null,null,null,null,null,null,"lan","entel"]
[null,null,null,null,null,null,null,null,null,"nal","etil"]
[null,null,null,null,null,null,null,null,null,"tal","etli"]
[null,null,null,null,null,null,null,null,null,"tel","ila"]
[null,null,null,null,null,null,null,null,null,"on","ile"]
[null,null,null,null,null,null,null,null,null,"no","ille"]
[null,null,null,null,null,null,null,null,null,"ot","illet"]
[null,null,null,null,null,null,null,null,null,"to","lala"]
[null,null,null,null,null,null,null,null,null,"ol","Lale"]
[null,null,null,null,null,null,null,null,null,"lo","latin"]
[null,null,null,null,null,null,null,null,null,"lot","Linet"]
[null,null,null,null,null,null,null,null,null,"not","nitel"]
[null,null,null,null,null,null,null,null,null,"tol","talan"]
[null,null,null,null,null,null,null,null,null,"ton","tali"]
[null,null,null,null,null,null,null,null,null,null,"tatil"]
[null,null,null,null,null,null,null,null,null,null,"telli"]
[null,null,null,null,null,null,null,null,null,null,"alo"]
[null,null,null,null,null,null,null,null,null,null,"etol"]
[null,null,null,null,null,null,null,null,null,null,"nato"]
[null,null,null,null,null,null,null,null,null,null,"neon"]
[null,null,null,null,null,null,null,null,null,null,"noel"]
[null,null,null,null,null,null,null,null,null,null,"nota"]
[null,null,null,null,null,null,null,null,null,null,"olta"]
[null,null,null,null,null,null,null,null,null,null,"ona"]
[null,null,null,null,null,null,null,null,null,null,"onat"]
[null,null,null,null,null,null,null,null,null,null,"otel"]
[null,null,null,null,null,null,null,null,null,null,"oto"]
[null,null,null,null,null,null,null,null,null,null,"tonla"]
[null,null,null,null,null,null,null,null,null,null,"tonton"]
[null,null,null,null,null,null,null,null,null,null,"total"]
[null,null,null,null,null,null,null,null,null,null,"toto"]

{"sheet":"k","index":7,"n_rows":168,"n_cols":18,"rows_kept":168,"cut":false,"hidden":false,"merged":[[0,0,0,7],[0,9,0,12],[0,14,0,17],[1,0,1,1],[1,3,1,4],[1,6,1,7],[1,10,1,12],[1,15,1,17],[2,0,2,1],[2,3,2,4],[2,6,2,7],[3,0,3,1],[3,3,3,4],[3,6,3,7],[8,0,8,1],[8,3,8,4],[8,6,8,7],[3,10,3,12],[3,15,3,17],[4,0,4,1],[4,3,4,4],[4,6,4,7],[5,10,5,12],[5,15,5,17],[6,0,6,1],[6,3,6,4],[6,6,6,7],[7,10,7,12],[7,15,7,17],[9,10,9,12],[9,15,9,17],[10,0,10,1],[11,0,11,18],[10,3,10,4],[10,6,10,7],[10,9,10,11]]}
["Tekrar Kısmı",null,null,null,null,null,null,null,null,"Yeni Ses İle Kelimeler",null,null,null,null,"Öğrenilmiş Tüm Seslerle Kelimeler"]
["Yeni Ses",null,null,"Sesli Başta",null,null,"Sessiz Başta",null,null,"Tek Hece:",{"$f":"INDEX(J53:J1000,RANDBETWEEN(1,32))","v":"kol"},null,null,null,"Tek Hece:",{"$f":"INDEX(J15:J1000,RANDBETWEEN(1,70))","v":"kel"}]
[{"$f":"D14","v":"k"},null,null,{"$f":"TersYaz(G3)","v":"ok"},null,null,{"$f":"A3 & INDEX(A13:D13,RANDBETWEEN(1,4))","v":"ko"},null,null,{"$f":"HeceleHoriz(K2)","v":"kol"},null,null,null,null,{"$f":"HeceleHoriz(P2)","v":"kel"}]
["Tüm Sesler",null,null,"Sesli Başta",null,null,"Sessiz Başta",null,null,"İki Hece:",{"$f":"INDEX(K70:K1000,RANDBETWEEN(1,99))","v":"atak"},null,null,null,"İki Hece:",{"$f":"INDEX(K15:K1000,RANDBETWEEN(1,154))","v":"tokat"}]
[{"$f":"INDEX(A13:C13,RANDBETWEEN(1,3))","v":"e"},null,null,{"$f":"TersYaz(G5)","v":"at"},null,null,{"$f":"A7 & A13","v":"ta"},null,null,{"$f":"HeceleHoriz(K4)","v":"a"},"tak",null,null,null,{"$f":"HeceleHoriz(P4)","v":"to"},"kat"]
[null,null,null,null,null,null,null,null,null,"Üç Hece:",{"$f":"INDEX(L36:L1000,RANDBETWEEN(1,71))","v":"teneke"},null,null,null,"Üç Hece:",{"$f":"INDEX(L15:L1000,RANDBETWEEN(1,92))","v":"eklektik"}]
[{"$f":"INDEX(A14:D14,RANDBETWEEN(1,4))","v":"t"},null,null,{"$f":"TersYaz(G7)","v":"et"},null,null,{"$f":"A7 & B13","v":"te"},null,null,{"$f":"HeceleHoriz(K6)","v":"te"},"ne","ke",null,null,{"$f":"HeceleHoriz(P6)","v":"ek"},"lek","tik"]
[null,null,null,null,null,null,null,null,null,"Dört Hece:",{"$f":"INDEX(M20:M1000,RANDBETWEEN(1,13))","v":"etiketli"},null,null,null,"Dört Hece:",{"$f":"INDEX(M15:M1000,RANDBETWEEN(1,18))","v":"etiketlik"}]
[{"$f":"UPPER(A5)","v":"E"},null,null,{"$f":"TersYaz(G9)","v":"it"},null,null,{"$f":"A7 & C13","v":"ti"},null,null,{"$f":"HeceleHoriz(K8)","v":"e"},"ti","ket","li",null,{"$f":"HeceleHoriz(P8)","v":"e"},"ti","ket","lik"]
[]
[{"$f":"UPPER(A7)","v":"T"},null,null,{"$f":"TersYaz(G11)","v":"ot"},null,null,{"$f":"A7 & D13","v":"to"},null,null,"Türkçeye uygun fonta geçmek için (harflerin yazılışlardaki farklılıklarını gidermek için) yandaki dosyayı indirip C:\\Windows\\Fonts içine kaydedin."]
["Kelimeler F9'a bastıkça değişecektir. (İlk gruplarda  fazla kelime olmadığı için aynı kelimeler tekrar gelebilir.)"]
["a","e","i","o"]
["n","t","l","k"]
[null,null,null,null,null,null,null,null,null,"an","ana","anane","anneanne"]
[null,null,null,null,null,null,null,null,null,"na","anne","tantana","iletilen"]
[null,null,null,null,null,null,null,null,null,"en","nane","itaat","ilintili"]
[null,null,null,null,null,null,null,null,null,"ne","nene","itina","iniltili"]
[null,null,null,null,null,null,null,null,null,"nan","anten","aile","tonalite"]
[null,null,null,null,null,null,null,null,null,"at","ata","alenen","ailelik"]
[null,null,null,null,null,null,null,null,null,"et","tane","aleni","analitik"]
[null,null,null,null,null,null,null,null,null,"ant","tente","aletli","antikatot"]
[null,null,null,null,null,null,null,null,null,"net","ani","anlatan","etiketli"]
[null,null,null,null,null,null,null,null,null,"tan","anti","antenli","etiketlik"]
[null,null,null,null,null,null,null,null,null,"tat","eti","atilla","etkililik"]
[null,null,null,null,null,null,null,null,null,"ten","inan","etilen","iletkenlik"]
[null,null,null,null,null,null,null,null,null,"in","inat","ilanen","kaliteli"]
[null,null,null,null,null,null,null,null,null,"it","nine","ileti","kalkolitik"]
[null,null,null,null,null,null,null,null,null,"ti","ninni","laleli","kanaatli"]
[null,null,null,null,null,null,null,null,null,"ni","alan","lanetli","katalitik"]
[null,null,null,null,null,null,null,null,null,"tin","alet","naneli","neolitik"]
[null,null,null,null,null,null,null,null,null,"la","anlat","taneli","nitelikli"]
[null,null,null,null,null,null,null,null,null,"le","atlet","tenteli"]
[null,null,null,null,null,null,null,null,null,"li","Ela","etanol"]
[null,null,null,null,null,null,null,null,null,"al","elit","otolit"]
[null,null,null,null,null,null,null,null,null,"el","elli","aitlik"]
[null,null,null,null,null,null,null,null,null,"il","elti","alkali"]
[null,null,null,null,null,null,null,null,null,"alt","enli","alkalik"]
[null,null,null,null,null,null,null,null,null,"lan","entel","alkolik"]
[null,null,null,null,null,null,null,null,null,"nal","etil","alttaki"]
[null,null,null,null,null,null,null,null,null,"tal","etli","annelik"]
[null,null,null,null,null,null,null,null,null,"tel","ila","antika"]
[null,null,null,null,null,null,null,null,null,"on","ile","atiklik"]
[null,null,null,null,null,null,null,null,null,"no","ille","atlantik"]
[null,null,null,null,null,null,null,null,null,"ot","illet","atletik"]
[null,null,null,null,null,null,null,null,null,"to","lala","ekenek"]
[null,null,null,null,null,null,null,null,null,"ol","Lale","ekili"]
[null,null,null,null,null,null,null,null,null,"lo","latin","ekinlik"]
[null,null,null,null,null,null,null,null,null,"lot","Linet","ekinti"]
[null,null,null,null,null,null,null,null,null,"not","nitel","eklektik"]
[null,null,null,null,null,null,null,null,null,"tol","talan","eklenen"]
[null,null,null,null,null,null,null,null,null,"ton","tali","eklenik"]
[null,null,null,null,null,null,null,null,null,"ak","tatil","eklenti"]
[null,null,null,null,null,null,null,null,null,"ek","telli","eleklik"]
[null,null,null,null,null,null,null,null,null,"ik","alo","ellilik"]
[null,null,null,null,null,null,null,null,null,"ok","etol","eltilik"]
[null,null,null,null,null,null,null,null,null,"ka","nato","eteklik"]
[null,null,null,null,null,null,null,null,null,"ke","neon","etiket"]
[null,null,null,null,null,null,null,null,null,"ki","noel","etkenlik"]
[null,null,null,null,null,null,null,null,null,"ko","nota","etkili"]
[null,null,null,null,null,null,null,null,null,"ilk","olta","etkinlik"]
[null,null,null,null,null,null,null,null,null,"kak","ona","ikili"]
[null,null,null,null,null,null,null,null,null,"kal","onat","ikilik"]
[null,null,null,null,null,null,null,null,null,"kalk","otel","iletken"]
[null,null,null,null,null,null,null,null,null,"kat","oto","iletki"]
[null,null,null,null,null,null,null,null,null,"kek","tonla","ilikli"]
[null,null,null,null,null,null,null,null,null,"kel","tonton","ilkellik"]
[null,null,null,null,null,null,null,null,null,"kent","total","illaki"]
[null,null,null,null,null,null,null,null,null,"ket","toto","ineklik"]
[null,null,null,null,null,null,null,null,null,"kil","akik","intikal"]
[null,null,null,null,null,null,null,null,null,"kin","allak","italik"]
[null,null,null,null,null,null,null,null,null,"kit","anka","itenek"]
[null,null,null,null,null,null,null,null,null,"klan","anket","itikat"]
[null,null,null,null,null,null,null,null,null,"kok","antik","kakao"]
[null,null,null,null,null,null,null,null,null,"kol","atak","kalite"]
[null,null,null,null,null,null,null,null,null,"kont","atik","kanaat"]
[null,null,null,null,null,null,null,null,null,"kot","ekin","kanalet"]
[null,null,null,null,null,null,null,null,null,"lak","ekli","katana"]
[null,null,null,null,null,null,null,null,null,"lik","eko","katlanan"]
[null,null,null,null,null,null,null,null,null,"tak","ekol","kekelik"]
[null,null,null,null,null,null,null,null,null,"tank","elek","kekikli"]
[null,null,null,null,null,null,null,null,null,"tek","enik","kenetli"]
[null,null,null,null,null,null,null,null,null,"tik","etek","kilitli"]
[null,null,null,null,null,null,null,null,null,"tok","etik","kiloton"]
[null,null,null,null,null,null,null,null,null,null,"etken","kinetik"]
[null,null,null,null,null,null,null,null,null,null,"etki","kokona"]
[null,null,null,null,null,null,null,null,null,null,"etkin","koloni"]
[null,null,null,null,null,null,null,null,null,null,"etnik","koniklik"]
[null,null,null,null,null,null,null,null,null,null,"iki","laklaka"]
[null,null,null,null,null,null,null,null,null,null,"ikna","lalelik"]
[null,null,null,null,null,null,null,null,null,null,"ikon","latinlik"]
[null,null,null,null,null,null,null,null,null,null,"ilik","lekeli"]
[null,null,null,null,null,null,null,null,null,null,"ilke","lokanta"]
[null,null,null,null,null,null,null,null,null,null,"ilkel","nitelik"]
[null,null,null,null,null,null,null,null,null,null,"ilkin","olanak"]
[null,null,null,null,null,null,null,null,null,null,"inek","otantik"]
[null,null,null,null,null,null,null,null,null,null,"inik","takanak"]
[null,null,null,null,null,null,null,null,null,null,"itki","takatli"]
[null,null,null,null,null,null,null,null,null,null,"kaka","takkeli"]
[null,null,null,null,null,null,null,null,null,null,"kalan","tekillik"]
[null,null,null,null,null,null,null,null,null,null,"kale","tektonik"]
[null,null,null,null,null,null,null,null,null,null,"kalkan","telakki"]
[null,null,null,null,null,null,null,null,null,null,"kanal","teneke"]
[null,null,null,null,null,null,null,null,null,null,"kanat","tenkitli"]
[null,null,null,null,null,null,null,null,null,null,"kanka","tetiklik"]
[null,null,null,null,null,null,null,null,null,null,"kanki","tilkilik"]
[null,null,null,null,null,null,null,null,null,null,"kano"]
[null,null,null,null,null,null,null,null,null,null,"kantin"]
[null,null,null,null,null,null,null,null,null,null,"katot"]
[null,null,null,null,null,null,null,null,null,null,"kekik"]
[null,null,null,null,null,null,null,null,null,null,"keklik"]
[null,null,null,null,null,null,null,null,null,null,"kelek"]
[null,null,null,null,null,null,null,null,null,null,"kellik"]
[null,null,null,null,null,null,null,null,null,null,"kenan"]
[null,null,null,null,null,null,null,null,null,null,"kene"]
[null,null,null,null,null,null,null,null,null,null,"kenet"]
[null,null,null,null,null,null,null,null,null,null,"kentli"]
[null,null,null,null,null,null,null,null,null,null,"kete"]
[null,null,null,null,null,null,null,null,null,null,"keten"]
[null,null,null,null,null,null,null,null,null,null,"kilit"]
[null,null,null,null,null,null,null,null,null,null,"kilo"]
[null,null,null,null,null,null,null,null,null,null,"kilot"]
[null,null,null,null,null,null,null,null,null,null,"kitle"]
[null,null,null,null,null,null,null,null,null,null,"kola"]
[null,null,null,null,null,null,null,null,null,null,"koli"]
[null,null,null,null,null,null,null,null,null,null,"kolik"]
[null,null,null,null,null,null,null,null,null,null,"kolon"]
[null,null,null,null,null,null,null,null,null,null,"konak"]
[null,null,null,null,null,null,null,null,null,null,"koni"]
[null,null,null,null,null,null,null,null,null,null,"konik"]
[null,null,null,null,null,null,null,null,null,null,"kontak"]
[null,null,null,null,null,null,null,null,null,null,"kota"]
[null,null,null,null,null,null,null,null,null,null,"laik"]
[null,null,null,null,null,null,null,null,null,null,"leke"]
[null,null,null,null,null,null,null,null,null,null,"liken"]
[null,null,null,null,null,null,null,null,null,null,"likit"]
[null,null,null,null,null,null,null,null,null,null,"nakit"]
[null,null,null,null,null,null,null,null,null,null,"naklen"]
[null,null,null,null,null,null,null,null,null,null,"nanik"]
[null,null,null,null,null,null,null,null,null,null,"netlik"]
[null,null,null,null,null,null,null,null,null,null,"nikel"]
[null,null,null,null,null,null,null,null,null,null,"nokta"]
[null,null,null,null,null,null,null,null,null,null,"okka"]
[null,null,null,null,null,null,null,null,null,null,"oktan"]
[null,null,null,null,null,null,null,null,null,null,"otak"]
[null,null,null,null,null,null,null,null,null,null,"otlak"]
[null,null,null,null,null,null,null,null,null,null,"takat"]
[null,null,null,null,null,null,null,null,null,null,"takke"]
[null,null,null,null,null,null,null,null,null,null,"takla"]
[null,null,null,null,null,null,null,null,null,null,"taklit"]
[null,null,null,null,null,null,null,null,null,null,"taktak"]
[null,null,null,null,null,null,null,null,null,null,"taktik"]
[null,null,null,null,null,null,null,null,null,null,"teke"]
[null,null,null,null,null,null,null,null,null,null,"tekil"]
[null,null,null,null,null,null,null,null,null,null,"tekin"]
[null,null,null,null,null,null,null,null,null,null,"tekke"]
[null,null,null,null,null,null,null,null,null,null,"tekli"]
[null,null,null,null,null,null,null,null,null,null,"teklik"]
[null,null,null,null,null,null,null,null,null,null,"tekne"]
[null,null,null,null,null,null,null,null,null,null,"teknik"]
[null,null,null,null,null,null,null,null,null,null,"telkin"]
[null,null,null,null,null,null,null,null,null,null,"tenkit"]
[null,null,null,null,null,null,null,null,null,null,"tetik"]
[null,null,null,null,null,null,null,null,null,null,"tetkik"]
[null,null,null,null,null,null,null,null,null,null,"tilki"]
[null,null,null,null,null,null,null,null,null,null,"toka"]
[null,null,null,null,null,null,null,null,null,null,"tokat"]
[null,null,null,null,null,null,null,null,null,null,"tonik"]

{"sheet":"Sonraki sesler eklenecektir","index":8,"n_rows":0,"n_cols":0,"rows_kept":0,"cut":false,"hidden":false,"merged":[]}